[Event "Live Chess"]
[Site "Chess.com"]
[Date "2023.05.20"]
[Round "-"]
[White "Olisingapore"]
[Black "ChessTWSS"]
[Result "1-0"]
[WhiteElo "1874"]
[BlackElo "1540"]
[TimeControl "300"]
[EndTime "14:13:35 PDT"]
[Termination "Olisingapore won on time"]

1. d4 {[%clk 0:04:57.3]} 1... d5 {[%clk 0:04:57.3]} 2. c4 {[%clk 0:04:56.6]}
2... e6 {[%clk 0:04:45.3]} 3. Nf3 {[%clk 0:04:52.8]} 3... Nf6 {[%clk 0:04:25.4]}
4. g3 {[%clk 0:04:49.5]} 4... Be7 {[%clk 0:04:20.1]} 5. Bg2 {[%clk 0:04:47]}
5... dxc4 {[%clk 0:04:14.1]} 6. O-O {[%clk 0:04:45.9]} 6... Nc6 {[%clk
0:04:07.5]} 7. Qc2 {[%clk 0:04:43.6]} 7... Nxd4 {[%clk 0:04:00.4]} 8. Nxd4
{[%clk 0:04:41.6]} 8... Qxd4 {[%clk 0:03:57.4]} 9. Rd1 {[%clk 0:04:39.8]} 9...
Qe5 {[%clk 0:03:50.3]} 10. Qxc4 {[%clk 0:04:28.7]} 10... O-O {[%clk 0:03:42.9]}
11. Bf4 {[%clk 0:04:25.5]} 11... Qxb2 {[%clk 0:03:36]} 12. Nc3 {[%clk
0:04:22.7]} 12... Bd7 {[%clk 0:03:15.8]} 13. Qxc7 {[%clk 0:04:18]} 13... Rac8
{[%clk 0:03:10.6]} 14. Rab1 {[%clk 0:03:57.9]} 14... Qxc3 {[%clk 0:02:54.6]} 15.
Qxc3 {[%clk 0:03:52.1]} 15... Rxc3 {[%clk 0:02:50.1]} 16. Be5 {[%clk 0:03:51.1]}
16... Ra3 {[%clk 0:02:43.7]} 17. Rxb7 {[%clk 0:03:47.2]} 17... Rxa2 {[%clk
0:02:37.2]} 18. Bxf6 {[%clk 0:03:39.5]} 18... Bxf6 {[%clk 0:02:31.1]} 19. Rdxd7
{[%clk 0:03:38.5]} 19... Ra1+ {[%clk 0:02:23.4]} 20. Bf1 {[%clk 0:03:36.7]}
20... Rd8 {[%clk 0:02:17.1]} 21. Rxa7 {[%clk 0:03:19.3]} 21... Rxd7 {[%clk
0:02:13.4]} 22. Rxd7 {[%clk 0:03:16.3]} 22... h5 {[%clk 0:02:00]} 23. Kg2 {[%clk
0:03:12.5]} 23... g5 {[%clk 0:01:53.9]} 24. e4 {[%clk 0:03:11.7]} 24... g4
{[%clk 0:01:49.7]} 25. Bd3 {[%clk 0:02:46.8]} 25... h4 {[%clk 0:01:41.2]} 26.
gxh4 {[%clk 0:02:44.8]} 26... Bxh4 {[%clk 0:01:36]} 27. f3 {[%clk 0:02:39.7]}
27... Ra2+ {[%clk 0:01:23.9]} 28. Kh1 {[%clk 0:02:35.6]} 28... gxf3 {[%clk
0:01:22.5]} 29. Bf1 {[%clk 0:02:29.8]} 29... Ra1 {[%clk 0:01:18.4]} 30. Kg1
{[%clk 0:02:27.6]} 30... f2+ {[%clk 0:01:05.9]} 31. Kg2 {[%clk 0:02:20.3]} 31...
Re1 {[%clk 0:00:59.2]} 32. Rc7 {[%clk 0:02:16]} 32... Rxe4 {[%clk 0:00:54]} 33.
Rc4 {[%clk 0:02:13.8]} 33... Rxc4 {[%clk 0:00:47.6]} 34. Bxc4 {[%clk 0:02:13.7]}
34... Kg7 {[%clk 0:00:32.5]} 35. Kh3 {[%clk 0:02:10.3]} 35... Bg5 {[%clk
0:00:24.3]} 36. Kg4 {[%clk 0:02:09.9]} 36... Be3 {[%clk 0:00:19.5]} 37. h4
{[%clk 0:02:08.6]} 37... f5+ {[%clk 0:00:18]} 38. Kf3 {[%clk 0:01:58.9]} 38...
Bc5 {[%clk 0:00:13.6]} 39. Kg2 {[%clk 0:01:54.1]} 39... e5 {[%clk 0:00:12.7]}
40. h5 {[%clk 0:01:50.2]} 40... Kf6 {[%clk 0:00:12.6]} 41. Be2 {[%clk
0:01:47.4]} 41... f4 {[%clk 0:00:11.2]} 42. Kf3 {[%clk 0:01:46.7]} 42... e4+
{[%clk 0:00:11.1]} 43. Kxe4 {[%clk 0:01:44.9]} 43... Kg5 {[%clk 0:00:10.1]} 44.
Kd3 {[%clk 0:01:40.6]} 44... Kh4 {[%clk 0:00:05.8]} 45. h6 {[%clk 0:01:37.2]}
45... Kg3 {[%clk 0:00:05.7]} 46. h7 {[%clk 0:01:35.3]} 46... Kg2 {[%clk
0:00:05.6]} 47. h8=Q {[%clk 0:01:33.7]} 47... f1=Q {[%clk 0:00:03.9]} 48. Bxf1+
{[%clk 0:01:32]} 48... Kxf1 {[%clk 0:00:03.8]} 49. Qh1+ {[%clk 0:01:30.8]} 49...
Kf2 {[%clk 0:00:02.7]} 50. Qh2+ {[%clk 0:01:27.1]} 50... Kf3 {[%clk 0:00:01]}
51. Qe2+ {[%clk 0:01:23.1]} 1-0

[Event "Live Chess"]
[Site "Chess.com"]
[Date "2023.05.20"]
[Round "-"]
[White "Nazar_777"]
[Black "ACx04"]
[Result "1-0"]
[WhiteElo "1608"]
[BlackElo "415"]
[TimeControl "300"]
[EndTime "14:13:39 PDT"]
[Termination "Nazar_777 won by checkmate"]

1. e3 {[%clk 0:04:51.3]} 1... e5 {[%clk 0:04:55.2]} 2. h4 {[%clk 0:04:49.8]}
2... g5 {[%clk 0:04:48.1]} 3. hxg5 {[%clk 0:04:48]} 3... Qxg5 {[%clk 0:04:46.9]}
4. a3 {[%clk 0:04:46.9]} 4... Qf6 {[%clk 0:04:42.4]} 5. c4 {[%clk 0:04:45.9]}
5... d6 {[%clk 0:04:40.5]} 6. Nf3 {[%clk 0:04:44.9]} 6... c6 {[%clk 0:04:38.3]}
7. Nc3 {[%clk 0:04:44.2]} 7... Bf5 {[%clk 0:04:33.8]} 8. Be2 {[%clk 0:04:42.5]}
8... Ne7 {[%clk 0:04:30.6]} 9. b4 {[%clk 0:04:41.5]} 9... d5 {[%clk 0:04:29.5]}
10. cxd5 {[%clk 0:04:40]} 10... cxd5 {[%clk 0:04:28.6]} 11. Nxd5 {[%clk
0:04:38.9]} 11... Nxd5 {[%clk 0:04:27.8]} 12. Bc4 {[%clk 0:04:37]} 12... Ne7
{[%clk 0:04:19.1]} 13. Bb2 {[%clk 0:04:35.8]} 13... Qc6 {[%clk 0:04:15.1]} 14.
Qb3 {[%clk 0:04:31.4]} 14... Nd7 {[%clk 0:04:10.8]} 15. Bxf7+ {[%clk 0:04:26.1]}
15... Kd8 {[%clk 0:04:05]} 16. Nxe5 {[%clk 0:04:24.1]} 16... Nxe5 {[%clk
0:04:02]} 17. Bxe5 {[%clk 0:04:22.9]} 17... Nd5 {[%clk 0:03:55.8]} 18. Bxd5
{[%clk 0:04:20.7]} 18... Qd7 {[%clk 0:03:51.2]} 19. Bxh8 {[%clk 0:04:17.9]}
19... Bh6 {[%clk 0:03:48.5]} 20. Bf6+ {[%clk 0:04:16]} 20... Kc8 {[%clk
0:03:39.3]} 21. Rc1+ {[%clk 0:04:13.6]} 21... Kb8 {[%clk 0:03:35.7]} 22. Be5+
{[%clk 0:04:10]} 22... Qc7 {[%clk 0:03:29.3]} 23. Bxc7+ {[%clk 0:04:08.6]} 23...
Kc8 {[%clk 0:03:28.1]} 24. Be5+ {[%clk 0:04:06.4]} 24... Kd8 {[%clk 0:03:19]}
25. Rxh6 {[%clk 0:04:02.7]} 25... Ke8 {[%clk 0:03:16.7]} 26. Bf7+ {[%clk
0:04:00.3]} 26... Kf8 {[%clk 0:03:14.1]} 27. Bg8 {[%clk 0:03:58.4]} 27... b5
{[%clk 0:03:07.3]} 28. Qf7# {[%clk 0:03:57]} 1-0

[Event "Live Chess"]
[Site "Chess.com"]
[Date "2023.05.20"]
[Round "-"]
[White "raminguy"]
[Black "JoeyCage"]
[Result "0-1"]
[WhiteElo "1959"]
[BlackElo "2310"]
[TimeControl "300"]
[EndTime "14:13:45 PDT"]
[Termination "JoeyCage won on time"]

1. d4 {[%clk 0:04:59.6]} 1... g6 {[%clk 0:04:55.8]} 2. Nc3 {[%clk 0:04:59.1]}
2... Bg7 {[%clk 0:04:54.8]} 3. Bf4 {[%clk 0:04:58.6]} 3... d6 {[%clk 0:04:52.2]}
4. Qd2 {[%clk 0:04:58]} 4... Nf6 {[%clk 0:04:49.9]} 5. O-O-O {[%clk 0:04:57.2]}
5... O-O {[%clk 0:04:48.9]} 6. Bh6 {[%clk 0:04:56.6]} 6... Bxh6 {[%clk 0:04:37]}
7. Qxh6 {[%clk 0:04:54.8]} 7... Ng4 {[%clk 0:04:36.1]} 8. Qf4 {[%clk 0:04:54.3]}
8... e5 {[%clk 0:04:28.6]} 9. dxe5 {[%clk 0:04:52.7]} 9... dxe5 {[%clk
0:04:27.5]} 10. Qf3 {[%clk 0:04:46.9]} 10... Qg5+ {[%clk 0:04:23.1]} 11. e3
{[%clk 0:04:45.3]} 11... Nc6 {[%clk 0:04:19.3]} 12. h3 {[%clk 0:04:43.5]} 12...
Nf6 {[%clk 0:04:17.2]} 13. Nge2 {[%clk 0:04:29.4]} 13... Bf5 {[%clk 0:04:10]}
14. g4 {[%clk 0:04:16.8]} 14... Be6 {[%clk 0:04:05]} 15. Bg2 {[%clk 0:04:09]}
15... Qh4 {[%clk 0:03:54.4]} 16. Ng3 {[%clk 0:03:46.5]} 16... Rad8 {[%clk
0:03:42.7]} 17. a3 {[%clk 0:03:19]} 17... Rxd1+ {[%clk 0:03:40.2]} 18. Rxd1
{[%clk 0:03:17.1]} 18... Nxg4 {[%clk 0:03:30.4]} 19. hxg4 {[%clk 0:02:56.6]}
19... Bxg4 {[%clk 0:03:28.9]} 20. Qe4 {[%clk 0:02:55.5]} 20... Qg5 {[%clk
0:03:17.2]} 21. Rh1 {[%clk 0:02:40.1]} 21... Be6 {[%clk 0:03:10.6]} 22. Qh4
{[%clk 0:02:33.5]} 22... Qxh4 {[%clk 0:03:08.9]} 23. Rxh4 {[%clk 0:02:31.9]}
23... Nd8 {[%clk 0:03:07.8]} 24. Nge4 {[%clk 0:02:13.8]} 24... f6 {[%clk
0:03:05.5]} 25. Nc5 {[%clk 0:02:08.4]} 25... Bc8 {[%clk 0:03:04]} 26. Nd5 {[%clk
0:02:03.3]} 26... Rf7 {[%clk 0:02:57.1]} 27. Nb4 {[%clk 0:01:50.1]} 27... c6
{[%clk 0:02:52]} 28. Ne4 {[%clk 0:01:43.1]} 28... Be6 {[%clk 0:02:44]} 29. Rh1
{[%clk 0:01:36.7]} 29... Kg7 {[%clk 0:02:39.4]} 30. Rd1 {[%clk 0:01:35.6]} 30...
Rd7 {[%clk 0:02:37.7]} 31. Rxd7+ {[%clk 0:01:31.7]} 31... Bxd7 {[%clk
0:02:36.6]} 32. Nc5 {[%clk 0:01:29]} 32... Bc8 {[%clk 0:02:34.6]} 33. Bf1 {[%clk
0:01:20.3]} 33... h5 {[%clk 0:02:31.5]} 34. Kd2 {[%clk 0:01:18.1]} 34... h4
{[%clk 0:02:30.2]} 35. Bg2 {[%clk 0:01:13.7]} 35... h3 {[%clk 0:02:27.6]} 36.
Bh1 {[%clk 0:01:12.9]} 36... f5 {[%clk 0:02:26.4]} 37. f3 {[%clk 0:01:10.9]}
37... Kf6 {[%clk 0:02:23.6]} 38. Ke2 {[%clk 0:01:08.3]} 38... b6 {[%clk
0:02:21.2]} 39. Ncd3 {[%clk 0:01:05.2]} 39... c5 {[%clk 0:02:20]} 40. Nd5+
{[%clk 0:01:03.5]} 40... Kf7 {[%clk 0:02:17.3]} 41. e4 {[%clk 0:00:53.7]} 41...
fxe4 {[%clk 0:02:13.8]} 42. fxe4 {[%clk 0:00:53.6]} 42... Nc6 {[%clk 0:02:06.6]}
43. c3 {[%clk 0:00:50.1]} 43... Ba6 {[%clk 0:01:57.2]} 44. Ke3 {[%clk
0:00:47.2]} 44... g5 {[%clk 0:01:54.6]} 45. Nf2 {[%clk 0:00:44.4]} 45... Bc8
{[%clk 0:01:51.4]} 46. Kf3 {[%clk 0:00:42.6]} 46... Kg6 {[%clk 0:01:49.4]} 47.
Kg3 {[%clk 0:00:41.2]} 47... Be6 {[%clk 0:01:36.4]} 48. Nxh3 {[%clk 0:00:39.7]}
48... Na5 {[%clk 0:01:35.2]} 49. Nf2 {[%clk 0:00:37]} 49... Nc4 {[%clk
0:01:33.2]} 50. Ng4 {[%clk 0:00:34.7]} 50... Bxg4 {[%clk 0:01:30.4]} 51. Kxg4
{[%clk 0:00:33.9]} 51... Nxb2 {[%clk 0:01:29.3]} 52. Ne7+ {[%clk 0:00:30.3]}
52... Kf6 {[%clk 0:01:27.6]} 53. Nc6 {[%clk 0:00:29.6]} 53... Nc4 {[%clk
0:01:22.6]} 54. a4 {[%clk 0:00:26.1]} 54... a6 {[%clk 0:01:18.8]} 55. Nb8 {[%clk
0:00:24.3]} 55... b5 {[%clk 0:01:15.6]} 56. axb5 {[%clk 0:00:22.8]} 56... axb5
{[%clk 0:01:14.3]} 57. Bf3 {[%clk 0:00:21.5]} 57... b4 {[%clk 0:01:12.6]} 58.
cxb4 {[%clk 0:00:19.9]} 58... cxb4 {[%clk 0:01:11.9]} 59. Be2 {[%clk 0:00:19.5]}
59... Nd2 {[%clk 0:01:06.9]} 60. Bd3 {[%clk 0:00:17.7]} 60... b3 {[%clk
0:01:05.6]} 61. Nd7+ {[%clk 0:00:15.7]} 61... Ke6 {[%clk 0:01:04]} 62. Nc5+
{[%clk 0:00:12.9]} 62... Kd6 {[%clk 0:01:02.3]} 63. Na4 {[%clk 0:00:12.4]} 63...
Kc6 {[%clk 0:00:59.1]} 64. Nb2 {[%clk 0:00:10.9]} 64... Kc5 {[%clk 0:00:57.1]}
65. Kxg5 {[%clk 0:00:08.7]} 65... Kd4 {[%clk 0:00:56.3]} 66. Kf5 {[%clk
0:00:06.4]} 66... Kc3 {[%clk 0:00:49.5]} 67. Kxe5 {[%clk 0:00:00.6]} 67... Kxb2
{[%clk 0:00:48]} 68. Kd4 {[%clk 0:00:00.5]} 68... Nf3+ {[%clk 0:00:44.7]} 0-1

[Event "Live Chess"]
[Site "Chess.com"]
[Date "2023.05.20"]
[Round "-"]
[White "TheSmoulderingMaster"]
[Black "Delacorta"]
[Result "0-1"]
[WhiteElo "1701"]
[BlackElo "1430"]
[TimeControl "300"]
[EndTime "14:13:51 PDT"]
[Termination "Delacorta won by resignation"]

1. e4 {[%clk 0:04:58.4]} 1... e6 {[%clk 0:04:59.1]} 2. d4 {[%clk 0:04:57.4]}
2... d5 {[%clk 0:04:58]} 3. Nc3 {[%clk 0:04:56.9]} 3... dxe4 {[%clk 0:04:49.9]}
4. Nxe4 {[%clk 0:04:56]} 4... Bd7 {[%clk 0:04:49.8]} 5. Nf3 {[%clk 0:04:54.6]}
5... Bc6 {[%clk 0:04:49]} 6. Bd3 {[%clk 0:04:52.6]} 6... Bxe4 {[%clk 0:04:47.5]}
7. Bxe4 {[%clk 0:04:51.8]} 7... c6 {[%clk 0:04:47]} 8. O-O {[%clk 0:04:50]} 8...
Nd7 {[%clk 0:04:46.1]} 9. c3 {[%clk 0:04:48.4]} 9... Ngf6 {[%clk 0:04:45.2]} 10.
Bd3 {[%clk 0:04:46.8]} 10... c5 {[%clk 0:04:43.2]} 11. Bg5 {[%clk 0:04:44.8]}
11... cxd4 {[%clk 0:04:41.5]} 12. Nxd4 {[%clk 0:04:43.9]} 12... Be7 {[%clk
0:04:40]} 13. Qe2 {[%clk 0:04:42.6]} 13... a6 {[%clk 0:04:37.9]} 14. Rfe1 {[%clk
0:04:39.6]} 14... O-O {[%clk 0:04:36.8]} 15. Nxe6 {[%clk 0:04:37]} 15... fxe6
{[%clk 0:04:31.3]} 16. Qxe6+ {[%clk 0:04:36]} 16... Kh8 {[%clk 0:04:30.2]} 17.
Qxe7 {[%clk 0:04:34.5]} 17... Re8 {[%clk 0:04:17.6]} 18. Qxd7 {[%clk 0:04:30.2]}
18... Rxe1+ {[%clk 0:04:09.7]} 19. Rxe1 {[%clk 0:04:27.8]} 19... Qxd7 {[%clk
0:04:01.8]} 0-1

[Event "Live Chess"]
[Site "Chess.com"]
[Date "2023.05.20"]
[Round "-"]
[White "siddu198"]
[Black "OmeetAtara"]
[Result "1-0"]
[WhiteElo "1635"]
[BlackElo "1787"]
[TimeControl "300"]
[EndTime "14:13:58 PDT"]
[Termination "siddu198 won by resignation"]

1. e4 {[%clk 0:04:58.8]} 1... d5 {[%clk 0:04:58.5]} 2. exd5 {[%clk 0:04:57.8]}
2... Qxd5 {[%clk 0:04:57.9]} 3. Nc3 {[%clk 0:04:57.1]} 3... Qa5 {[%clk
0:04:57.5]} 4. d4 {[%clk 0:04:56.2]} 4... c6 {[%clk 0:04:57]} 5. Bd2 {[%clk
0:04:55.3]} 5... Bf5 {[%clk 0:04:56.3]} 6. Ne4 {[%clk 0:04:48]} 6... Qc7 {[%clk
0:04:54.5]} 7. f3 {[%clk 0:04:46.3]} 7... e5 {[%clk 0:04:46.7]} 8. Bd3 {[%clk
0:04:42.5]} 8... Bxe4 {[%clk 0:04:39]} 9. Bxe4 {[%clk 0:04:39.9]} 9... Nf6
{[%clk 0:04:38.2]} 10. dxe5 {[%clk 0:04:38.4]} 10... Qxe5 {[%clk 0:04:36.8]} 11.
Bc3 {[%clk 0:04:34.4]} 11... Qe6 {[%clk 0:04:35.2]} 12. Qe2 {[%clk 0:04:30.2]}
12... Bc5 {[%clk 0:04:33.6]} 13. Bd3 {[%clk 0:04:24.7]} 13... Qxe2+ {[%clk
0:04:31.5]} 14. Nxe2 {[%clk 0:04:24.2]} 14... Nbd7 {[%clk 0:04:30.8]} 15. Ng3
{[%clk 0:04:22.7]} 15... O-O {[%clk 0:04:29.4]} 16. O-O-O {[%clk 0:04:21.6]}
16... Be3+ {[%clk 0:04:27.2]} 17. Kb1 {[%clk 0:04:19.7]} 17... Nd5 {[%clk
0:04:22]} 18. Ne4 {[%clk 0:04:15.5]} 18... f5 {[%clk 0:04:17.2]} 19. Ng3 {[%clk
0:03:58.6]} 19... Nxc3+ {[%clk 0:04:10.8]} 20. bxc3 {[%clk 0:03:57.5]} 20... g6
{[%clk 0:04:08.5]} 21. Rhe1 {[%clk 0:03:48.7]} 21... Bf2 {[%clk 0:04:03.9]} 22.
Re7 {[%clk 0:03:48.1]} 22... Nf6 {[%clk 0:03:59.5]} 23. Rxb7 {[%clk 0:03:42.3]}
23... Rab8 {[%clk 0:03:58.3]} 24. Rb3 {[%clk 0:03:34]} 24... Nd5 {[%clk
0:03:55.3]} 25. Bc4 {[%clk 0:03:30.7]} 25... Rxb3+ {[%clk 0:03:45.3]} 26. cxb3
{[%clk 0:03:28.2]} 26... Rd8 {[%clk 0:03:44.3]} 27. Bxd5+ {[%clk 0:03:25.8]}
27... cxd5 {[%clk 0:03:42.7]} 28. Ne2 {[%clk 0:03:16.2]} 28... Kf7 {[%clk
0:03:41.6]} 29. Nd4 {[%clk 0:03:14.6]} 29... Rc8 {[%clk 0:03:39.9]} 30. Kc2
{[%clk 0:03:10.8]} 30... Kf6 {[%clk 0:03:37.5]} 31. g3 {[%clk 0:03:04.1]} 31...
Ke5 {[%clk 0:03:32.1]} 32. Nb5 {[%clk 0:02:55.5]} 32... a6 {[%clk 0:03:22.3]}
33. Na3 {[%clk 0:02:53.5]} 33... d4 {[%clk 0:03:18]} 34. c4 {[%clk 0:02:44.9]}
34... Re8 {[%clk 0:03:07.5]} 35. Nb1 {[%clk 0:02:40.6]} 35... Kd6 {[%clk
0:03:05.9]} 36. Rd2 {[%clk 0:02:27.6]} 36... Be3 {[%clk 0:03:03.3]} 37. Re2
{[%clk 0:02:24.7]} 37... Kc5 {[%clk 0:03:01.9]} 38. Nd2 {[%clk 0:02:12.6]} 38...
Rd8 {[%clk 0:02:54.7]} 39. Kd3 {[%clk 0:02:11.6]} 39... Kb4 {[%clk 0:02:53]} 40.
Nf1 {[%clk 0:02:08.1]} 40... Bf4 {[%clk 0:02:47.1]} 41. gxf4 {[%clk 0:02:02.3]}
1-0

[Event "Live Chess"]
[Site "Chess.com"]
[Date "2023.05.20"]
[Round "-"]
[White "GEMdzq"]
[Black "diana21strabt"]
[Result "1-0"]
[WhiteElo "2236"]
[BlackElo "1701"]
[TimeControl "300"]
[EndTime "14:13:58 PDT"]
[Termination "GEMdzq won by resignation"]

1. e4 {[%clk 0:04:57]} 1... d5 {[%clk 0:04:58.8]} 2. exd5 {[%clk 0:04:55.9]}
2... Qxd5 {[%clk 0:04:56.9]} 3. Nc3 {[%clk 0:04:55.6]} 3... Qa5 {[%clk
0:04:54.1]} 4. d4 {[%clk 0:04:55.2]} 4... Nf6 {[%clk 0:04:52.5]} 5. Bc4 {[%clk
0:04:54.9]} 5... Bg4 {[%clk 0:04:51.3]} 6. f3 {[%clk 0:04:51.3]} 6... Bf5 {[%clk
0:04:49.2]} 7. Ne2 {[%clk 0:04:50.6]} 7... Nc6 {[%clk 0:04:47.1]} 8. O-O {[%clk
0:04:44.5]} 8... O-O-O {[%clk 0:04:45.5]} 9. Bxf7 {[%clk 0:04:30.4]} 9... e5
{[%clk 0:04:40.9]} 10. Bd2 {[%clk 0:04:20.9]} 10... exd4 {[%clk 0:04:35.2]} 11.
Ne4 {[%clk 0:04:18.3]} 11... Qb6 {[%clk 0:04:31.9]} 12. N2g3 {[%clk 0:04:01.2]}
12... Bxe4 {[%clk 0:04:23]} 13. Nxe4 {[%clk 0:03:57.7]} 13... Ne5 {[%clk
0:04:21]} 14. Bb3 {[%clk 0:03:52.3]} 14... d3+ {[%clk 0:04:14.9]} 15. Kh1 {[%clk
0:03:50.8]} 15... dxc2 {[%clk 0:04:12.8]} 16. Qxc2 {[%clk 0:03:50.2]} 16... Nd5
{[%clk 0:03:31.9]} 17. Rac1 {[%clk 0:03:40.4]} 17... Nc6 {[%clk 0:03:22.1]} 18.
Bg5 {[%clk 0:03:37.1]} 18... Rd7 {[%clk 0:03:12.9]} 19. Rfd1 {[%clk 0:03:31.4]}
19... Ndb4 {[%clk 0:02:54.1]} 20. Qc4 {[%clk 0:03:12.4]} 20... Rxd1+ {[%clk
0:02:41.2]} 21. Rxd1 {[%clk 0:03:12.3]} 21... h6 {[%clk 0:02:20.1]} 22. Qe6+
{[%clk 0:03:09]} 22... Kb8 {[%clk 0:02:11.3]} 23. Qe8+ {[%clk 0:03:08.6]} 1-0

[Event "Live Chess"]
[Site "Chess.com"]
[Date "2023.05.20"]
[Round "-"]
[White "luckywookie"]
[Black "gregor1903"]
[Result "0-1"]
[WhiteElo "743"]
[BlackElo "1567"]
[TimeControl "300"]
[EndTime "14:14:00 PDT"]
[Termination "gregor1903 won on time"]

1. e4 {[%clk 0:04:58.9]} 1... c5 {[%clk 0:04:56.8]} 2. c3 {[%clk 0:04:55.2]}
2... Nf6 {[%clk 0:04:54.4]} 3. e5 {[%clk 0:04:53.5]} 3... Nd5 {[%clk 0:04:53.4]}
4. Nf3 {[%clk 0:04:52.7]} 4... Nc6 {[%clk 0:04:51.4]} 5. Bc4 {[%clk 0:04:51.6]}
5... Nb6 {[%clk 0:04:49.9]} 6. Bb3 {[%clk 0:04:50.1]} 6... d6 {[%clk 0:04:48.8]}
7. O-O {[%clk 0:04:47.5]} 7... Nxe5 {[%clk 0:04:41.3]} 8. Nxe5 {[%clk
0:04:44.5]} 8... dxe5 {[%clk 0:04:39.9]} 9. Re1 {[%clk 0:04:18.1]} 9... Qc7
{[%clk 0:04:33.9]} 10. a4 {[%clk 0:04:06.7]} 10... a5 {[%clk 0:04:28.7]} 11. Bc2
{[%clk 0:03:59.2]} 11... e6 {[%clk 0:04:23.1]} 12. Na3 {[%clk 0:03:56.6]} 12...
Bd7 {[%clk 0:04:15.3]} 13. Bd3 {[%clk 0:03:33.2]} 13... Bd6 {[%clk 0:04:10.3]}
14. Nb5 {[%clk 0:03:25.9]} 14... Qb8 {[%clk 0:03:51.2]} 15. Qh5 {[%clk
0:02:34.7]} 15... g6 {[%clk 0:03:34.9]} 16. Qf3 {[%clk 0:02:22]} 16... Bc6
{[%clk 0:03:21.1]} 17. Be4 {[%clk 0:02:15.8]} 17... Bxe4 {[%clk 0:02:23.9]} 18.
Qxe4 {[%clk 0:02:04.2]} 18... f5 {[%clk 0:02:13.4]} 19. Qh4 {[%clk 0:01:27.2]}
19... Be7 {[%clk 0:02:00]} 20. Qh6 {[%clk 0:01:09.9]} 20... Bf8 {[%clk
0:01:44.8]} 21. Qg5 {[%clk 0:01:03.5]} 21... Nc4 {[%clk 0:01:30.4]} 22. d4
{[%clk 0:00:49.8]} 22... Qc8 {[%clk 0:01:13.2]} 23. dxe5 {[%clk 0:00:22.5]}
23... Be7 {[%clk 0:01:07.9]} 24. Nd6+ {[%clk 0:00:11.6]} 24... Nxd6 {[%clk
0:00:58.9]} 25. Qd2 {[%clk 0:00:08.2]} 25... Nc4 {[%clk 0:00:47.1]} 26. Qd3
{[%clk 0:00:06.3]} 26... Nb6 {[%clk 0:00:39.6]} 27. Bh6 {[%clk 0:00:05.4]} 27...
Rg8 {[%clk 0:00:34.4]} 28. Rad1 {[%clk 0:00:04.7]} 28... Qc7 {[%clk 0:00:27.8]}
29. Qf3 {[%clk 0:00:03.4]} 29... Rd8 {[%clk 0:00:21]} 30. Rd3 {[%clk 0:00:01.4]}
30... Rxd3 {[%clk 0:00:18.2]} 31. Qxd3 {[%clk 0:00:00.3]} 31... Qd8 {[%clk
0:00:16.5]} 0-1